Cogmind - Beta 16 @@@ ROGUE MODE // 2026.01.01 @ 16:53:38 Player: the Result: Destroyed by H-66 Slayer with Gauss Rifle Performance ------------- Evolutions (4) 2000 Regions Visited (14) 2800 Robots Destroyed (188) 940 Value Destroyed (6276) 6276 Prototype IDs (64) 1280 Alien Tech Used (0) 0 Bonus (711) 711 TOTAL SCORE: 14007 Bonus ------- High Alert Combat Kills 76 Follower Combat Kills 35 Aligned with FarCom 300 Met Data Miner 300 Cogmind --------- Core Integrity 0/850 Matter 220/300 Energy 100/100 System Corruption 8% Temperature Cool (0) Movement Core (700) Ox13 Location -6/Lower Caves Parts ------- > --- POWER (1) -------- (None) > --- PROPULSION (2) --- (None) > --- UTILITY (10) ----- High-capacity Storage Unit Advanced Visual Processing Unit Improved Signal Interpreter Advanced Targeting Computer > --- WEAPON (2) ------- (None) > --- INVENTORY (20) --- Energy Well (350) Matter Compressor (250) Advanced Sensor Array Advanced Terrain Scanner Advanced Terrain Scan Processor 0b10 Decoder Chip [Generic] Improved Particle Charger Transmission Jammer Improved Utility Shielding Authchip [Propulsion] Authchip [Device] Drone Bay (2/2) CPS Tube (2) Axe Peak State ------------ > --- POWER ------------ Improved Deuterium Engine > --- PROPULSION ------- Armored Huge Wheel > --- UTILITY ---------- High-capacity Storage Unit Machine Analyzer Advanced Visual Processing Unit Advanced Sensor Array Improved Signal Interpreter Advanced Targeting Computer Core Analyzer Core Analyzer Improved Particle Charger Hacking Suite > --- WEAPON ----------- Plasma Cannon Chainsword > --- INVENTORY -------- Improved Deuterium Engine Light Fission Core Energy Well Matter Compressor Advanced Sensor Array Advanced Terrain Scanner Transmission Jammer Improved Utility Shielding Medium Reactive Plating Powered Armor Powered Armor Powered Armor Hacking Suite System Restoration Module Drone Bay HERF Cannon HERF Cannon Plasma Cannon Heavy Machine Gun Precision Grenade Launcher [Rating: 63] Favorites ----------- Power Improved Deuterium Engine Engine Improved Deuterium Engine Power Core Light Fission Core Propulsion Wheel Wheel Wheel Utility Core Analyzer Device Advanced Sensor Array Storage High-capacity Storage Unit Processor Core Analyzer Hackware Hacking Suite Protection Powered Armor Weapon Plasma Cannon Energy Gun Advanced Beam Rifle Energy Cannon Plasma Cannon Ballistic Gun Autogun Launcher Guided EMP Blaster Special Weapon Mining Laser Impact Weapon Great Maul Slashing Weapon Chainsword Special Melee Weapon Datajack Build | -11 -10 -10 -10 -9 -8 -8 -7 -7 -7 -7 -6 -6 -6 -6 ------- Run | Yrd Mat Min Exi Min Mat Sto Fac Low Low Dat Pro Fac Low Low Slots Evolved 8 | . . . . . 4 . 2 . . . . 2 . . Power . | . . . . . . . . . . . . . . . Propulsion . | . . . . . . . . . . . . . . . Utility 8 | . . . . . 4 . 2 . . . . 2 . . Weapon . | . . . . . . . . . . . . . . . Parts Attached 116 | 7 10 5 2 1 34 18 18 1 2 3 . 7 2 6 Power 13 | 1 2 . 1 . 3 2 1 . . . . 1 . 2 Engine 9 | 1 1 . 1 . 2 1 1 . . . . 1 . 1 Core 4 | . 1 . . . 1 1 . . . . . . . 1 Reactor . | . . . . . . . . . . . . . . . Propulsion 17 | 2 . 3 . . 4 5 2 . 1 . . . . . Treads . | . . . . . . . . . . . . . . . Leg . | . . . . . . . . . . . . . . . Wheel 17 | 2 . 3 . . 4 5 2 . 1 . . . . . Hover . | . . . . . . . . . . . . . . . Flight . | . . . . . . . . . . . . . . . Utility 46 | 2 3 . . . 16 3 9 1 . 1 . 5 2 4 Device 16 | 1 1 . . . 5 1 1 1 . . . 4 1 1 Storage 6 | 1 2 . . . 1 1 . . . . . . . 1 Processor 8 | . . . . . 1 . 5 . . 1 . 1 . . Hackware 4 | . . . . . 4 . . . . . . . . . Protection 12 | . . . . . 5 1 3 . . . . . 1 2 Artifact . | . . . . . . . . . . . . . . . Weapon 40 | 2 5 2 1 1 11 8 6 . 1 2 . 1 . . Energy Gun 18 | 2 2 . . . 5 6 2 . . . . 1 . . Energy Cannon 6 | . . 1 . . 1 . 1 . 1 2 . . . . Ballistic Gun 6 | . 1 1 . . 3 . 1 . . . . . . . Ballistic Cannon . | . . . . . . . . . . . . . . . Launcher 5 | . 1 . . 1 1 1 1 . . . . . . . Special Weapon 1 | . 1 . . . . . . . . . . . . . Impact Weapon 1 | . . . . . 1 . . . . . . . . . Slashing Weapon 2 | . . . . . . 1 1 . . . . . . . Piercing Weapon . | . . . . . . . . . . . . . . . Special Melee Weapon 1 | . . . 1 . . . . . . . . . . . Unidentified Prototypes 10 | . . . . . 4 3 2 . . . . 1 . . Corrupted Parts 3 | . . . . . 1 . . . . . . . . 2 System Corruption 18 | . . . . . 10 . . . . . . . . 8 Parts Lost 25 | . 1 . . . 4 5 . . 1 . . . . 14 Power 6 | . 1 . . . 2 . . . . . . . . 3 Propulsion 3 | . . . . . . 2 . . . . . . . 1 Utility 10 | . . . . . 2 2 . . 1 . . . . 5 Weapon 6 | . . . . . . 1 . . . . . . . 5 Highest Loss Streak 3 | . 1 . . . 1 2 . . 1 . . . . 3 To Critical Strikes . | . . . . . . . . . . . . . . . Average Backups 16 | 3 11 17 19 18 18 15 17 18 17 14 12 17 19 17 Power . | . 1 1 1 1 . . . 1 1 1 1 1 1 . Propulsion . | . 1 1 1 1 1 . 1 1 . . . . . . Utility 9 | . 5 9 11 10 9 6 7 8 8 7 6 10 14 13 Weapon 5 | 1 3 3 5 6 6 7 8 8 7 6 5 5 3 2 Tool/Special . | . . . . . . . . . . . . . . . Unused Backups 46 | 1 4 1 1 . 8 8 7 . 1 . 1 3 1 10 Power 4 | . 1 . . . 2 . . . . . . 1 . . Propulsion 5 | 1 1 . . . 2 . 1 . . . . . . . Utility 22 | . 1 . 1 . 2 3 4 . . . 1 1 1 8 Weapon 13 | . . 1 . . 2 5 2 . 1 . . 1 . 1 Tool/Special 2 | . 1 . . . . . . . . . . . . 1 Average Slot Usage (%) 86 | . 99 100 100 100 93 97 87 84 82 83 89 92 93 67 Engine 4 | . 5 . 6 14 4 4 6 7 7 7 7 6 6 . Core 3 | . 7 14 7 . 4 4 . . . . . . . 3 Wheel 11 | . 28 28 28 28 18 17 9 7 7 7 7 6 6 . Device 8 | . 14 14 14 14 5 8 5 7 6 6 6 6 10 9 Storage 8 | . 14 14 14 14 9 9 7 7 7 7 7 6 6 6 Processor 21 | . . . . . 8 9 24 38 37 38 38 39 40 30 Hackware 7 | . . . . . 16 18 14 7 7 7 7 6 2 . Protection 4 | . . . . . 8 8 7 . . . . 5 6 4 Energy Gun 2 | . 12 . . . 6 11 1 . . . . . . . Energy Cannon 4 | . . 8 14 14 2 . . . . . 9 8 13 7 Ballistic Gun 4 | . 12 14 2 8 7 4 5 4 1 . . . . . Launcher 1 | . . 5 . 5 . . . 2 4 5 2 . . . Peak Build Rating 63 | 7 10 17 17 17 41 46 62 61 62 55 56 63 63 63 Average Rating 40 | 5 9 14 15 16 31 35 57 59 56 53 50 60 62 44 On Entrance 34 | . 7 10 17 17 16 36 39 62 57 39 51 50 60 63 Avg Prop Armor Cover (%) . | . . . . . . . . . . . . . . . Naked Turns . | . . . . . . . . . . . . . . . Heaviest Build 85 | 13 50 55 55 56 75 78 75 61 71 74 82 78 79 85 Greatest Support 28 | 20 20 20 20 20 26 20 28 28 28 28 28 28 28 28 Greatest Overweight (x) 28 | . 2 2 2 2 3 7 3 2 2 2 2 2 2 28 Average Overweight (x) 2 | . 1 2 2 2 2 2 2 2 1 2 1 2 2 10 Largest Inventory Capacity 20 | 8 20 20 20 20 20 20 20 20 20 20 20 20 20 20 Average Capacity 19 | 7 16 20 20 20 20 20 20 20 20 20 20 20 20 20 Most Carried 20 | 7 14 20 20 20 20 20 20 20 20 16 15 20 20 20 Average Carried 17 | 3 11 17 19 19 19 19 19 19 19 13 13 17 19 17 Final Capacity 20 | 8 20 20 20 20 20 20 20 20 20 20 20 20 20 20 Final Carried 20 | 7 14 20 19 20 20 18 20 20 17 14 13 20 20 14 Class Distribution -------------------- 41% | Mutant 31% | Hacker-Mutant 18% | Skirmisher 6% | Assassin Dominant Class ---------------- Mutant | -10/Materials Mutant | -10/Mines Mutant | -10/Exiles Mutant | -9/Mines Hacker-Mutant | -8/Materials Hacker-Mutant | -8/Storage Hacker-Mutant | -7/Factory Skirmisher | -7/Lower Caves Skirmisher | -7/Lower Caves Skirmisher | -7/Data Miner Skirmisher | -6/Proximity Caves Assassin | -6/Factory Skirmisher | -6/Lower Caves Mutant | -6/Lower Caves Resources | -11 -10 -10 -10 -9 -8 -8 -7 -7 -7 -7 -6 -6 -6 -6 ----------- Run | Yrd Mat Min Exi Min Mat Sto Fac Low Low Dat Pro Fac Low Low Matter Collected 5130 | 270 194 244 40 21 1115 928 442 135 225 . 275 412 442 387 Remotely . | . . . . . . . . . . . . . . . Salvage Created 7549 | 154 236 312 . 34 1937 1797 966 174 464 . 201 661 24 589 Parts 445 | 13 14 20 . 9 100 111 65 9 18 . 7 51 6 22 Haulers Intercepted 9 | . 1 . . . 4 4 . . . . . . . . Recyclers Shooed 6 | . . . . . 1 4 . . . . . 1 . . Parts Field Recycled . | . . . . . . . . . . . . . . . Retrieved Matter . | . . . . . . . . . . . . . . . Parts Self-Destructed 27 | . . . . . . . . 3 7 . 4 . . 13 Prevented 24 | . . . . . . . . 5 10 . 2 . . 7 Parts Restored . | . . . . . . . . . . . . . . . Kills | -11 -10 -10 -10 -9 -8 -8 -7 -7 -7 -7 -6 -6 -6 -6 ------- Run | Yrd Mat Min Exi Min Mat Sto Fac Low Low Dat Pro Fac Low Low Combat Hostiles Destroyed 121 | . 4 3 . 4 29 27 18 3 8 . 6 6 1 12 Melee 3 | . . . . . . . . . . . . 1 . 2 Guns 52 | . 4 . . . 16 16 14 . 2 . . . . . Cannons 19 | . . 3 . . 5 . . . . . . 5 1 5 AOE 37 | . . . . 4 6 11 4 2 2 . 4 . . 4 Classes Destroyed 18 | 2 3 2 . 1 6 1 1 . . . . . 1 1 Worker 11 | . . 1 . . 5 5 . . . . . . . . Builder 13 | . . 1 . . 1 4 1 . . . . 6 . . Tunneler 7 | 3 . 3 . . . . . . . . . 1 . . Hauler 9 | . 1 . . . 4 4 . . . . . . . . Recycler 9 | 1 . 1 . . 1 4 1 . . . . 1 . . Minesweeper 1 | . . . . . . . . . . . . . . 1 Mechanic 1 | . . . . . . 1 . . . . . . . . Operator 5 | . 2 . . . . 1 2 . . . . . . . Watcher 10 | . . . . . 2 2 3 . . . . 3 . . Swarmer 17 | . . . . 4 . 4 4 . . . 4 . . 1 Grunt 60 | . 4 3 . . 18 13 5 2 5 . 1 1 . 8 Brawler 3 | . . . . . 1 1 . 1 . . . . . . Duelist 2 | . . . . . 1 . . . . . . . . 1 Sentry 23 | . . . . . 8 9 4 . 1 . . . . 1 Hunter 8 | . . . . . 1 . 2 . 1 . 1 2 . 1 Programmer 7 | . . . . . . . 3 . 1 . . 3 . . Heavy 1 | . . . . . 1 . . . . . . . . . Master Thief 1 | . . . . . . . . . . . . . 1 . Best Kill Streak 12 | 2 2 3 . 4 7 12 5 2 3 . 4 2 1 4 Combat Bots Only 9 | . 2 2 . 4 7 9 5 2 3 . 4 2 1 4 Max Kills in Single Turn 5 | 1 1 1 . 4 5 4 4 1 2 . 2 2 1 1 Gunslinging . | . . . . . . . . . . . . . . . Exploded 5 | . . . . 4 5 3 3 1 1 . 2 . . 1 Melee 1 | . . . . . . . . . . . . 1 . 1 Uniques/NPCs Destroyed . | . . . . . . . . . . . . . . . Combat | -11 -10 -10 -10 -9 -8 -8 -7 -7 -7 -7 -6 -6 -6 -6 -------- Run | Yrd Mat Min Exi Min Mat Sto Fac Low Low Dat Pro Fac Low Low Hostile Shots Fired 688 | . 12 10 . 1 133 92 98 . 31 . 15 32 4 260 Missed 221 | . 3 1 . 1 44 33 37 . 12 . 6 4 2 78 Hits 467 | . 9 9 . . 89 59 61 . 19 . 9 28 2 182 Melee 11 | . . . . . 1 . . . 6 . . . 2 2 Projectile 456 | . 9 9 . . 88 59 61 . 13 . 9 28 . 180 Critical Strikes 20 | . . . . . 5 3 2 . . . . . . 10 Part Disruptions 1 | . . . . . . . . . . . . 1 . . Damage Taken 6920 | . 125 121 . . 1435 872 604 . 277 . 137 481 . 2868 Core 1327 | . 11 50 . . 155 149 45 . 54 . . 90 . 773 Absorbed by Shields . | . . . . . . . . . . . . . . . Ignored by Resistances 134 | . . . . . . 47 . . . . . . . 87 Regen/Repaired (Parts) 486 | . . . . . . 133 121 . . . . 232 . . Core Remaining (%) 76 | 100 . . . 75 . 44 . . . . 85 . . . Volleys Fired 423 | 10 35 20 . 1 127 98 1 9 17 . 16 39 4 46 Largest 2 | 2 2 2 . 1 2 2 1 1 1 . 2 2 2 2 Hottest 176 | 80 100 85 . 33 126 130 88 50 88 . 176 160 160 160 Shots Fired 790 | 20 62 40 . 1 225 171 87 9 32 . 19 59 8 57 Gun 517 | 20 56 20 . . 163 157 86 . 15 . . . . . Cannon 178 | . . 20 . . 36 2 1 . 3 . 7 58 8 43 Launcher 70 | . . . . 1 7 12 . 9 14 . 12 1 . 14 Special 25 | . 6 . . . 19 . . . . . . . . . Kinetic 301 | . 23 20 . . 96 61 86 . 15 . . . . . Thermal 390 | 20 39 20 . . 117 96 . . . . 1 58 8 31 Explosive 28 | . . . . 1 7 2 . . . . 4 . . 14 Electromagnetic 71 | . . . . . 5 12 1 9 17 . 14 1 . 12 Robot Hit Streak 15 | 5 9 7 . . 15 10 12 . 11 . 2 7 6 9 Robot Miss Streak 7 | 3 4 2 . . 3 7 3 . 1 . 2 2 1 2 Penetration Max . | . . . . . . . . . . . . . . . Secondary Targets 3 | . . . . . 2 1 . . . . . . . . Max Gunslinging Chain 1 | . . . . . 1 1 . . . . . . . . Autonomous 101 | . . . . . . . 86 . 15 . . . . . Shots Hit Robots 474 | 12 32 24 4 . 129 114 66 . 18 . 3 31 5 36 Core Hits 335 | 5 17 10 . 4 72 119 33 6 14 . 9 18 2 26 Critical Kills . | . . . . . . . . . . . . . . . Critical Parts Destroyed 2 | . . . . . . . 2 . . . . . . . Critical Strikes 5 | . . . . . 2 1 2 . . . . . . . Burn 3 | . . . . . 2 1 . . . . . . . . Destroy 2 | . . . . . . . 2 . . . . . . . Melee Attacks 91 | . . . 4 . 5 1 21 . 7 . 2 36 . 15 Impact 5 | . . . . . 5 . . . . . . . . . Slashing 82 | . . . . . . 1 21 . 7 . 2 36 . 15 Piercing . | . . . . . . . . . . . . . . . Sneak Attacks 10 | . . . 4 . . 1 . . . . . 4 . 1 Combat Hostiles . | . . . . . . . . . . . . . . . Follow-up Attacks . | . . . . . . . . . . . . . . . Damage Inflicted 15799 | 132 312 499 . 220 3047 3541 2624 349 1227 . 599 1194 125 1930 Guns 6414 | 132 312 195 . . 1783 1721 1881 . 390 . . . . . Cannons 2778 | . . 304 . . 470 12 37 . 128 . 124 762 125 816 Explosions 5799 | . . . . 220 733 1744 706 349 642 . 475 32 . 898 Melee 747 | . . . . . . 64 . . 67 . . 400 . 216 Ramming 37 | . . . . . 37 . . . . . . . . . Kinetic 3999 | . 88 195 . . 855 590 1881 . 390 . . . . . Thermal 4987 | 132 224 304 . . 1443 1132 243 104 . . . 762 125 518 Explosive 2655 | . . . . 220 387 458 463 . . . 229 . . 898 Electromagnetic 3374 | . . . . . 325 1297 37 245 770 . 370 32 . 298 Impact . | . . . . . . . . . . . . . . . Slashing 747 | . . . . . . 64 . . 67 . . 400 . 216 Piercing . | . . . . . . . . . . . . . . . Highest Corruption 30 | . . . . . 22 30 2 2 2 2 2 1 1 8 Average Corruption 10 | . . . . . 9 25 1 2 2 2 2 1 1 7 Corruption Purged 1 | . . . . . . . . . . . . . 1 . Corruption Blocked . | . . . . . . . . . . . . . . . Effects 139 | . . . . . 5 91 4 5 8 1 9 . . 16 Message Errors 30 | . . . . . . 21 1 1 . . 2 . . 5 Matter Fused 27 | . . . . . . 18 1 1 1 . 3 . . 3 Heat Flow Errors 17 | . . . . . 1 10 1 . . . 2 . . 3 Energy Discharges 21 | . . . . . 2 12 . 1 4 1 1 . . . Parts Rejected 4 | . . . . . . 2 1 . . . . . . 1 Parts Fused 1 | . . . . . . 1 . . . . . . . . Data Loss (minor) 14 | . . . . . 1 9 . 2 1 . . . . 1 Data Loss (major) 5 | . . . . . . . . . 2 . . . . 3 Misfires 4 | . . . . . . 3 . . . . 1 . . . Alerts 3 | . . . . . 1 2 . . . . . . . . Misdirections 1 | . . . . . . 1 . . . . . . . . Weapon Failures 12 | . . . . . . 12 . . . . . . . . Overload Shots . | . . . . . . . . . . . . . . . Overflow Damage 375 | . . . . . . 41 93 . 7 . . 151 2 81 Projectiles 13 | . . . . . . . . . . . . . 2 11 Explosions 176 | . . . . . . 17 93 . . . . . . 66 Melee 186 | . . . . . . 24 . . 7 . . 151 . 4 Knockbacks . | . . . . . . . . . . . . . . . Impact . | . . . . . . . . . . . . . . . Kinetic . | . . . . . . . . . . . . . . . Secondary . | . . . . . . . . . . . . . . . Self-Inflicted Damage 319 | . . . . . 38 29 53 . 43 . . . . 156 Shots 10 | . . . . . 1 1 1 . 3 . . . . 4 Rammed 1 | . . . . . 1 . . . . . . . . . Targets Rammed 1 | . . . . . 1 . . . . . . . . . Kicked . | . . . . . . . . . . . . . . . Crushed . | . . . . . . . . . . . . . . . Highest Temperature 504 | 108 85 267 . . 366 471 184 . 132 . 265 467 336 504 Average Temperature 101 | 44 26 92 . . 100 72 71 . 70 . 120 112 171 192 Received Heat Transfer 2640 | . 72 69 . . 738 459 138 . 18 . . 108 . 1038 Effects 22 | . . 1 . . 3 5 . . . . . 2 . 11 Shutdowns 3 | . . . . . . . . . . . . 1 . 2 Energy Bleed 6 | . . 1 . . 2 1 . . . . . 1 . 1 Interference 4 | . . . . . . 3 . . . . . . . 1 Matter Decay 3 | . . . . . 1 . . . . . . . . 2 Short Circuit 3 | . . . . . . . . . . . . . . 3 Damage (minor) 3 | . . . . . . 1 . . . . . . . 2 Siege Activations . | . . . . . . . . . . . . . . . Martial Activations . | . . . . . . . . . . . . . . . Shielding Activations . | . . . . . . . . . . . . . . . Robots Disrupted . | . . . . . . . . . . . . . . . Combat Hostiles . | . . . . . . . . . . . . . . . Robots Corrupted 9 | . . . . . 1 . . 1 4 . 2 . . 1 Combat Hostiles 9 | . . . . . 1 . . 1 4 . 2 . . 1 Parts Fried 19 | . . . . . 4 3 . 1 4 . 5 . . 2 Impact Corruptions . | . . . . . . . . . . . . . . . Robots Melted 1 | . . . . . 1 . . . . . . . . . Combat Hostiles 1 | . . . . . 1 . . . . . . . . . Parts Melted 17 | 1 . . . . 6 3 2 . . . . 2 1 2 Heat Transferred 8782 | 300 512 481 . . 2986 1803 150 100 . . . 1300 250 900 Parts Sabotaged . | . . . . . . . . . . . . . . . Parts Stolen 6 | . . . . . . . . . 4 . . . 2 . Parts Stripped . | . . . . . . . . . . . . . . . Power Chain Reactions 2 | . . . . . . 1 . 1 . . . . . . Latent Energy Used 1095 | . . . . . 695 400 . . . . . . . . LE Corruption 18 | . . . . . 12 6 . . . . . . . . Alert | -11 -10 -10 -10 -9 -8 -8 -7 -7 -7 -7 -6 -6 -6 -6 ------- Run | Yrd Mat Min Exi Min Mat Sto Fac Low Low Dat Pro Fac Low Low Maximum Alert Level 2 | . . . . . 2 2 2 . . . . . . . Low Security (%) 76 | 100 100 100 . 100 94 55 25 . . . . 100 . . Level 1 16 | . . . . . 3 20 62 . . . . . . . Level 2 6 | . . . . . 2 24 11 . . . . . . . Level 3 . | . . . . . . . . . . . . . . . Level 4 . | . . . . . . . . . . . . . . . Level 5 . | . . . . . . . . . . . . . . . High Security . | . . . . . . . . . . . . . . . Max Security . | . . . . . . . . . . . . . . . Peak Influence 606 | 10 73 46 . 100 435 435 606 . . . . 100 . . Initial 188 | . . . . . 11 182 188 . . . . 100 . . Average 125 | 1 10 4 . 27 130 214 265 . . . . 32 . . Influence Increases 4995 | 20 192 112 . 100 1233 1064 987 100 265 . 285 317 . 320 Destroy 0b10 Robot/C 2420 | . 80 60 . 80 600 540 360 60 160 . 120 120 . 240 Destroy 0b10 Robot/NC 330 | 20 15 30 . . 65 105 35 . . . . 55 . 5 Destroy Leader 618 | . 22 20 . 10 162 142 116 10 30 . 30 46 . 30 Allied During Kill 15 | . . . . . 15 . . . . . . . . . Successful Hack 212 | . 24 . . . 43 31 74 . . . . 40 . . Disable Machine 435 | . . . . . 90 75 270 . . . . . . . Destroy Structure 380 | . 6 2 . 10 108 81 132 . . . . 41 . . Partial Spotted 15 | . 15 . . . . . . . . . . . . . Lose Combat Pursuer 570 | . 30 . . . 150 90 . 30 75 . 135 15 . 45 Influence Decreases 4960 | 20 192 112 . 70 830 1083 798 422 433 113 126 434 42 285 Entered New Map 963 | . . . . . 19 251 226 224 55 113 . 59 16 . Time Decay 3309 | 20 192 112 . 70 604 487 562 198 368 . 126 375 26 169 Lost Part 213 | . . . . . 40 47 . . 10 . . . . 116 Lost Ally 51 | . . . . . 41 . 10 . . . . . . . Purge Threat 424 | . . . . . 126 298 . . . . . . . . Squads Dispatched 22 | . 3 1 . . 4 2 6 . 1 . . 5 . . Investigation 7 | . 1 1 . . 1 . 1 . . . . 3 . . Extermination 5 | . . . . . . . 3 . . . . 2 . . Reinforcement 8 | . 2 . . . 3 2 1 . . . . . . . Assault 2 | . . . . . . . 1 . 1 . . . . . Garrison . | . . . . . . . . . . . . . . . Intercept . | . . . . . . . . . . . . . . . Searches Triggered . | . . . . . . . . . . . . . . . Construction Impeded 1 | . . . . . . 1 . . . . . . . . Haulers Reinforced . | . . . . . . . . . . . . . . . Active Scanning Responses . | . . . . . . . . . . . . . . . Cargo Convoy Interrupts . | . . . . . . . . . . . . . . . Stealth | -11 -10 -10 -10 -9 -8 -8 -7 -7 -7 -7 -6 -6 -6 -6 --------- Run | Yrd Mat Min Exi Min Mat Sto Fac Low Low Dat Pro Fac Low Low Distress Signals 8 | . 1 . . . 1 5 . . . . . 1 . . Communications Jammed . | . . . . . . . . . . . . . . . Distress Signals . | . . . . . . . . . . . . . . . Times Spotted 170 | . 16 3 . 3 45 31 22 . 11 . 6 13 3 17 Peak Tracking Total 8 | . 3 2 . 4 6 8 4 3 4 . 4 4 2 4 Tactical Retreats 21 | . 1 . . . 6 3 . 2 2 . 3 1 . 3 Traps | -11 -10 -10 -10 -9 -8 -8 -7 -7 -7 -7 -6 -6 -6 -6 ------- Run | Yrd Mat Min Exi Min Mat Sto Fac Low Low Dat Pro Fac Low Low Traps Triggered 3 | . 1 . . . . 2 . . . . . . . . Indirectly . | . . . . . . . . . . . . . . . Trap Hack Attempts . | . . . . . . . . . . . . . . . Triggered . | . . . . . . . . . . . . . . . Disarmed . | . . . . . . . . . . . . . . . Reprogrammed . | . . . . . . . . . . . . . . . Reused . | . . . . . . . . . . . . . . . Traps Extracted . | . . . . . . . . . . . . . . . Installed . | . . . . . . . . . . . . . . . Triggered . | . . . . . . . . . . . . . . . Machines | -11 -10 -10 -10 -9 -8 -8 -7 -7 -7 -7 -6 -6 -6 -6 ---------- Run | Yrd Mat Min Exi Min Mat Sto Fac Low Low Dat Pro Fac Low Low Machines Disabled 30 | . . . . . 6 5 18 . 1 . . . . . Max in Single Turn 10 | . . . . . 1 1 10 . 1 . . . . . Garrison Access 1 | . . . . . . . . . . . . 1 . . Machines Repaired . | . . . . . . . . . . . . . . . Machines Dismantled . | . . . . . . . . . . . . . . . Machines Sabotaged . | . . . . . . . . . . . . . . . Overloaded Fab Kills . | . . . . . . . . . . . . . . . Hacking | -11 -10 -10 -10 -9 -8 -8 -7 -7 -7 -7 -6 -6 -6 -6 --------- Run | Yrd Mat Min Exi Min Mat Sto Fac Low Low Dat Pro Fac Low Low Machines Accessed 82 | . 9 2 2 . 12 15 20 2 1 3 . 16 . . Terminals 48 | . 7 . . . 9 12 13 . . . . 7 . . Fabricators 6 | . . . . . . . 4 . . . . 2 . . Repair Stations 7 | . . . . . 1 2 1 . . . . 3 . . Recycling Units 4 | . 2 . . . 1 1 . . . . . . . . Scanalyzers 6 | . . . . . 1 . 2 . . . . 3 . . Garrison Access 1 | . . . . . . . . . . . . 1 . . Total Hacks 222 | . 22 2 2 . 31 40 62 5 1 22 . 35 . . Successful 136 | . 10 2 2 . 20 24 30 5 1 22 . 20 . . Failed 85 | . 12 . . . 10 16 32 . . . . 15 . . Catastrophic 14 | . 4 . . . . . 6 . . . . 4 . . Database Lockouts 1 | . . . . . 1 . . . . . . . . . Manual 68 | . 9 . 1 . 12 14 22 . . . . 10 . . Terminals 128 | . 18 . . . 25 35 33 . . . . 17 . . Fabricators 20 | . . . . . . . 16 . . . . 4 . . Repair Stations 15 | . . . . . 2 4 2 . . . . 7 . . Recycling Units 6 | . 4 . . . 1 1 . . . . . . . . Scanalyzers 20 | . . . . . 3 . 11 . . . . 6 . . Garrison Access 1 | . . . . . . . . . . . . 1 . . Terminal Hacks 74 | . 6 2 2 . 11 16 7 5 1 22 . 2 . . Record 11 | . . . 1 . . . . 4 . 6 . . . . Part Schematic 11 | . . . . . 1 . . . . 10 . . . . Robot Schematic 3 | . . . . . . . . . . 3 . . . . Robot Analysis 4 | . 1 . . . 1 1 1 . . . . . . . Prototype ID Bank 11 | . 2 . . . 2 3 1 . . 3 . . . . Open Door 9 | . . 2 . . . 5 . 1 1 . . . . . Branch Access Points 4 | . . . . . 1 1 1 . . . . 1 . . Terminal Index 1 | . . . . . . . . . . . . 1 . . Unreport Threat 3 | . . . . . 1 2 . . . . . . . . Locate Traps 5 | . 1 . . . 2 1 1 . . . . . . . Recall Investigation 1 | . . . . . . . 1 . . . . . . . Hauler Manifests 3 | . 1 . . . 1 1 . . . . . . . . Registered Components 1 | . . . . . . . 1 . . . . . . . Registered Prototypes 1 | . . . . . 1 . . . . . . . . . Zone Layout 5 | . 1 . . . 1 2 1 . . . . . . . Proto ID Catalog 1 | . . . 1 . . . . . . . . . . . Fabricator Hacks 7 | . . . . . . . 5 . . . . 2 . . Network Status 1 | . . . . . . . 1 . . . . . . . Load Schematic 4 | . . . . . . . 2 . . . . 2 . . Build 2 | . . . . . . . 2 . . . . . . . Repair Station Hacks 12 | . . . . . 1 4 2 . . . . 5 . . Scan Component 7 | . . . . . 1 2 1 . . . . 3 . . Repair 5 | . . . . . . 2 1 . . . . 2 . . Recycling Unit Hacks 3 | . 1 . . . 1 1 . . . . . . . . Retrieve Components 3 | . 1 . . . 1 1 . . . . . . . . Scanalyzer 18 | . . . . . 2 . 11 . . . . 5 . . Insert Component 8 | . . . . . 1 . 5 . . . . 2 . . Analyze 7 | . . . . . 1 . 4 . . . . 2 . . Retrieve Study 3 | . . . . . . . 2 . . . . 1 . . Garrison Access Hacks 1 | . . . . . . . . . . . . 1 . . Seal Access 1 | . . . . . . . . . . . . 1 . . Unauthorized Hacks 21 | . 3 . . . 5 3 5 . . . . 5 . . Terminals 17 | . 3 . . . 5 3 3 . . . . 3 . . Assimilate 3 | . . . . . 3 . . . . . . . . . Botnet 8 | . . . . . 2 2 2 . . . . 2 . . Operators 3 | . . . . . . 1 1 . . . . 1 . . Skim 3 | . 3 . . . . . . . . . . . . . Fabricators 4 | . . . . . . . 2 . . . . 2 . . Liberate 1 | . . . . . . . 1 . . . . . . . Fabnet 1 | . . . . . . . 1 . . . . . . . Recompile 2 | . . . . . . . . . . . . 2 . . Repair Stations . | . . . . . . . . . . . . . . . Recycling Units . | . . . . . . . . . . . . . . . Scanalyzers . | . . . . . . . . . . . . . . . Garrison Access . | . . . . . . . . . . . . . . . Data Cores Recovered 1 | . . . . . . . 1 . . . . . . . Used . | . . . . . . . . . . . . . . . Hacking Detections 62 | . 8 . . . 12 11 19 . . . . 12 . . Full Trace Events 4 | . 1 . . . 1 . 1 . . . . 1 . . Feedback Events . | . . . . . . . . . . . . . . . Feedback Blocked . | . . . . . . . . . . . . . . . Robot Schematics Acquired 3 | . . . . . . . . . . 3 . . . . Robots Built . | . . . . . . . . . . . . . . . Authchips . | . . . . . . . . . . . . . . . Time . | . . . . . . . . . . . . . . . Total Robot Build Rating . | . . . . . . . . . . . . . . . Part Schematics Acquired 17 | . . . . . 1 . 4 . . 10 . 2 . . Parts Built 4 | . . . . . . . 4 . . . . . . . Authchips . | . . . . . . . . . . . . . . . Time 100 | . . . . . . . 100 . . . . . . . Total Part Build Rating 22 | . . . . . . . 22 . . . . . . . Part Studies Acquired 3 | . . . . . . . 2 . . . . 1 . . Parts Repaired 5 | . . . . . . 2 1 . . . . 2 . . Time 204 | . . . . . . 94 22 . . . . 88 . . Parts Recycled . | . . . . . . . . . . . . . . . Recycled Matter . | . . . . . . . . . . . . . . . Retrieved Matter . | . . . . . . . . . . . . . . . Retrieved Components 20 | . 4 . . . 9 7 . . . . . . . . Parts Scanalyzed 7 | . . . . . 1 . 4 . . . . 2 . . Part Schematics Acquired 6 | . . . . . . . 4 . . . . 2 . . Parts Damaged . | . . . . . . . . . . . . . . . Bothacking | -11 -10 -10 -10 -9 -8 -8 -7 -7 -7 -7 -6 -6 -6 -6 ------------ Run | Yrd Mat Min Exi Min Mat Sto Fac Low Low Dat Pro Fac Low Low Used RIF Installer . | . . . . . . . . . . . . . . . Robots Hacked 4 | . . . 4 . . . . . . . . . . . Non-combat 3 | . . . 3 . . . . . . . . . . . Combat 1 | . . . 1 . . . . . . . . . . . Robot Hacks Applied 4 | . . . 4 . . . . . . . . . . . parse_system 4 | . . . 4 . . . . . . . . . . . Relay Couplers Released . | . . . . . . . . . . . . . . . Fabnet Peak Effective % 3 | . . . . . . . . . . . 3 3 3 3 Robots Rewired . | . . . . . . . . . . . . . . . Allies Hacked . | . . . . . . . . . . . . . . . Hacks Repelled . | . . . . . . . . . . . . . . . Allies | -11 -10 -10 -10 -9 -8 -8 -7 -7 -7 -7 -6 -6 -6 -6 -------- Run | Yrd Mat Min Exi Min Mat Sto Fac Low Low Dat Pro Fac Low Low Total Allies 4 | . . . . 3 1 . . . . . . . . . Largest Group 3 | . . . . 3 3 . . . . . . . . . Highest-Rated Group 40 | . . . . 40 40 . . . . . . . . . Highest-Rated Ally 16 | . . . . 16 16 . . . . . . . . . Total Orders 6 | . . . . . . . 6 . . . . . . . EXPLORE 4 | . . . . . . . 4 . . . . . . . RETURN 2 | . . . . . . . 2 . . . . . . . Ally Attacks 9 | . . . . . 9 . . . . . . . . . Total Damage 71 | . . . . . 71 . . . . . . . . . Kills 1 | . . . . . 1 . . . . . . . . . Allies Corrupted . | . . . . . . . . . . . . . . . Allies Melted . | . . . . . . . . . . . . . . . Intel | -11 -10 -10 -10 -9 -8 -8 -7 -7 -7 -7 -6 -6 -6 -6 ------- Run | Yrd Mat Min Exi Min Mat Sto Fac Low Low Dat Pro Fac Low Low Active Infowar (turns) 16053 | 46 1017 908 383 348 2204 1567 1677 406 844 99 731 1209 468 4146 Optics 9580 | . . . . . . . 1677 406 844 99 731 1209 468 4146 Sensors 7076 | . . . . . . . . 406 824 94 670 1028 432 3622 Terrain 44 | . . . . . 43 . . . . . . 1 . . Seismic 3747 | 46 1017 908 383 348 279 766 . . . . . . . . Machine Analysis 9675 | . . . . . 2202 1567 1677 406 844 99 731 1209 468 472 Jamming 36 | . . . . . . . . . . . . 36 . . Robot Analysis Total 4 | . 1 . . . 1 1 1 . . . . . . . Derelict Logs Recovered 7 | . . 1 . 1 . . . 2 . . 1 . 1 1 Drone Launches 5 | . . . . . . . 5 . . . . . . . Drone Recoveries 3 | . . . . . . . 3 . . . . . . . Exploration | -11 -10 -10 -10 -9 -8 -8 -7 -7 -7 -7 -6 -6 -6 -6 ------------- Run | Yrd Mat Min Exi Min Mat Sto Fac Low Low Dat Pro Fac Low Low Turns Passed 16105 | 98 1017 908 383 348 2204 1567 1677 406 844 99 731 1209 468 4146 Spaces Moved 8286 | 63 772 590 336 272 1186 792 1096 311 611 77 515 648 364 653 Core 339 | 4 . . . . . . . . . . . . . 335 Treads . | . . . . . . . . . . . . . . . Legs . | . . . . . . . . . . . . . . . Wheels 7947 | 59 772 590 336 272 1186 792 1096 311 611 77 515 648 364 318 Hover . | . . . . . . . . . . . . . . . Flight . | . . . . . . . . . . . . . . . Fastest Speed 50 | 50 80 110 110 110 110 110 120 120 105 120 105 120 120 120 Average Speed 152 | 78 97 110 110 110 118 117 124 120 118 120 117 120 120 583 Slowest Speed 1450 | 80 110 110 110 110 125 185 130 120 120 120 120 120 120 1450 Overloaded Moves . | . . . . . . . . . . . . . . . Propulsion Burnouts . | . . . . . . . . . . . . . . . Robots Hopped . | . . . . . . . . . . . . . . . Potential Cave-ins 11 | . . . . . 6 . . . . . . . . 5 Cave-ins Triggered . | . . . . . . . . . . . . . . . Exploration Rate (%) 63 | 4 96 88 70 63 90 92 47 46 71 72 67 22 60 64 Regions Visited 14 Branch Regions 10 Pre-discovered Areas 5 | . . . 1 . . . . 1 . 1 1 . . 1 Known Exits Taken 8 | . . . . . 1 . 1 1 1 1 1 1 1 . Unknown Exits Taken 6 | 1 1 1 1 1 . 1 . . . . . . . . Scrap Searched 17 | . . 2 . 1 . . . 1 1 . 1 . 10 1 Spaces Dug 126 | . 6 . . . 22 15 20 . 2 . 14 35 . 12 Terrain Destroyed 580 | . 6 2 . 10 154 87 140 8 8 . 48 43 . 74 Melee 60 | . . . . . 5 . 20 . 2 . 2 26 . 5 Projectile 95 | . 6 2 . . 20 . 34 . 6 . . 17 . 10 AOE 425 | . . . . 10 129 87 86 8 . . 46 . . 59 Terrain Rammed . | . . . . . . . . . . . . . . . Walls Destroyed . | . . . . . . . . . . . . . . . Machines Disabled . | . . . . . . . . . . . . . . . Actions | -11 -10 -10 -10 -9 -8 -8 -7 -7 -7 -7 -6 -6 -6 -6 --------- Run | Yrd Mat Min Exi Min Mat Sto Fac Low Low Dat Pro Fac Low Low Total 10922 | 89 968 817 350 318 1728 1262 1394 335 707 83 620 951 386 914 Wait 1490 | . 122 182 . 42 292 270 150 12 38 . 68 155 6 153 Move 8272 | 62 771 589 335 271 1185 791 1095 310 610 76 514 647 363 653 Hop . | . . . . . . . . . . . . . . . Pick Up 149 | 9 12 12 3 1 25 21 25 1 8 1 3 18 5 5 Fast Attach 50 | 6 1 . . . 6 10 21 . 1 . . . . 5 Attach 84 | 1 2 . 2 . 12 10 17 1 9 4 5 7 1 13 Detach 26 | . . . . . 1 . 12 . 4 . 2 1 . 6 Swap 164 | . 16 5 1 3 43 24 7 1 4 1 6 40 4 9 Drop 164 | 1 9 9 5 . 31 29 45 1 9 1 4 8 3 9 Fire 423 | 10 35 20 . 1 127 98 1 9 17 . 16 39 4 46 Melee 91 | . . . 4 . 5 1 21 . 7 . 2 36 . 15 Ram 1 | . . . . . 1 . . . . . . . . . Kick . | . . . . . . . . . . . . . . . Crush . | . . . . . . . . . . . . . . . Escape Stasis 8 | . . . . . . 8 . . . . . . . . Rewire . | . . . . . . . . . . . . . . . Trap . | . . . . . . . . . . . . . . . Miscellaneous . | . . . . . . . . . . . . . . . Route ------- -11/Scrapyard -10/Materials (discovered 4 exits: [*Mat x3] / *Min) -10/Mines (discovered 2 exits: [*Mat] / *Exi) -10/Exiles -9/Mines -8/Materials (discovered 4 exits: *Fac x2 / *Sto x2) -8/Storage (discovered 2 exits: *Fac / Rec) -7/Factory (discovered 2 exits: *Low x2) -7/Lower Caves -7/Lower Caves (discovered 2 exits: *Fac / *Dat) -7/Data Miner -6/Proximity Caves -6/Factory (discovered 2 exits: *Low x2) -6/Lower Caves -6/Lower Caves History --------- Turn | Location | Event 23 | -11/Scrapyard | Discovered new exit (range 16) 99 | -11/Scrapyard | Entered Materials 191 | -10/Materials | Discovered new exit (range 9) 316 | -10/Materials | Build established: Mutant 419 | -10/Materials | Discovered new exit (range 10) 515 | -10/Materials | Discovered new exit (range 7) 673 | -10/Materials | Discovered new exit (range 5) 1116 | -10/Materials | Entered Mines 1179 | -10/Mines | Deemed a non-threat by the Exiles lab entrance 1226 | -10/Mines | Learned Materials garrison access intel 1241 | -10/Mines | Met a Derelict who couldn't figure out how to use a Trap Extractor 1621 | -10/Mines | Discovered new exit (range 6) 1639 | -10/Mines | Met a Derelict shopkeep closing up shop 1731 | -10/Mines | Received a Rocket Launcher from a helpful Derelict 1903 | -10/Mines | Discovered new exit (range 5) 2024 | -10/Mines | Entered Exiles 2054 | -10/Exiles | Met 8R-AWN 2073 | -10/Exiles | Met EX-HEX 2119 | -10/Exiles | Met EX-DEC 2124 | -10/Exiles | Learned location of Zion (-6) 2164 | -10/Exiles | Met EX-BIN 2180 | -10/Exiles | Aligned with FarCom system 2182 | -10/Exiles | Given EX-Vault access code 2207 | -10/Exiles | Opened EX-Vault 2215 | -10/Exiles | Found Latent Energy Streamer 2220 | -10/Exiles | Found AWS/Gauss 2241 | -10/Exiles | Warned to stay clear of 0b10 Research branches 2392 | -10/Exiles | Discovered new exit (range 14) 2407 | -10/Exiles | Stole two prototypes: Latent Energy Streamer, AWS/Gauss 2407 | -10/Exiles | Entered Mines 2449 | -9/Mines | Learned Materials stockpile data 2460 | -9/Mines | Found a hidden stash of uninstalled traps 2492 | -9/Mines | Found a Scrap Suit stashed away for nefarious purposes 2624 | -9/Mines | Assisted by bots powering up and referring to "LRC-V3" 2732 | -9/Mines | Discovered new exit (range 15) 2755 | -9/Mines | Entered Materials 2755 | -8/Materials | Accompanied by 3 allies 2755 | -8/Materials | Evolved 4 slots: Utility x4 2757 | -8/Materials | Loaded intel: 1 garrison access location 2887 | -8/Materials | Destroyed 7 combat bots 2888 | -8/Materials | Lost 3 allies 3119 | -8/Materials | Discovered new exit (range 3) 3309 | -8/Materials | Build established: Hacker-Mutant 3410 | -8/Materials | Identified exit to Storage 3752 | -8/Materials | Central database locked down 3903 | -8/Materials | Discovered new exit (range 4) 4874 | -8/Materials | System corruption reached 10% 4958 | -8/Materials | Found Corrupted Prototype Device 4959 | -8/Materials | Entered Storage 4961 | -8/Storage | FarCom data flow suspended 5035 | -8/Storage | Repaired Med. Reactive Plating 5152 | -8/Storage | Identified exit to Recycling 5740 | -8/Storage | Core integrity fell below 50% 5794 | -8/Storage | Destroyed 9 combat bots 6145 | -8/Storage | System corruption reached 30% 6254 | -8/Storage | Discovered new exit (range 7) 6364 | -8/Storage | Repaired Adv. Heat Sink 6526 | -8/Storage | Entered Factory 6526 | -7/Factory | Evolved 2 slots: Utility x2 6881 | -7/Factory | Found Powered Armor 7169 | -7/Factory | Fabricated HERF Cannon (x2) 7311 | -7/Factory | Identified exit to Lower Caves 7586 | -7/Factory | Repaired Powered Armor 7830 | -7/Factory | Fabricated Powered Armor (x2) 8126 | -7/Factory | First assault squad dispatched 8203 | -7/Factory | Entered Lower Caves 8224 | -7/Lower Caves | Learned Factory terminal intel 8315 | -7/Lower Caves | Entered an active Warlord outpost 8327 | -7/Lower Caves | Learned Research terminal intel 8397 | -7/Lower Caves | Identified exit to Lower Caves 8399 | -7/Lower Caves | Encountered a Warlord checkpoint 8513 | -7/Lower Caves | Build established: Skirmisher 8609 | -7/Lower Caves | Entered another Lower Caves area 8612 | -7/Lower Caves | Encountered a Warlord checkpoint 8697 | -7/Lower Caves | Discovered new exit (range 20) 8892 | -7/Lower Caves | Attracted the attention of an 0b10 outpost 9008 | -7/Lower Caves | Found DCF Scrap (12 items) 9364 | -7/Lower Caves | Encountered a Master Thief 9364 | -7/Lower Caves | AWS/Gauss stolen by Master Thief 9369 | -7/Lower Caves | Encountered a Master Thief 9369 | -7/Lower Caves | Encountered a Master Thief 9370 | -7/Lower Caves | Latent Energy Streamer stolen by Master Thief 9382 | -7/Lower Caves | Arm. Huge Wheel stolen by Master Thief 9449 | -7/Lower Caves | Discovered new exit (range 5) 9452 | -7/Lower Caves | Identified exit to Data Miner 9453 | -7/Lower Caves | Entered Data Miner 9455 | -7/Data Miner | Discovered new exit (range 6) 9473 | -7/Data Miner | Met Data Miner 9505 | -7/Data Miner | Learned location of Section 7 (-3) 9505 | -7/Data Miner | Acquired the access code to Warlord's prototype stash 9520 | -7/Data Miner | Received God Mode back door access code from Data Miner 9545 | -7/Data Miner | Identified exit to Proximity Caves 9552 | -7/Data Miner | Entered Proximity Caves 10276 | -6/Proximity Caves | Discovered new exit (range 8) 10282 | -6/Proximity Caves | Identified exit to Factory 10283 | -6/Proximity Caves | Entered Factory 10283 | -6/Factory | Evolved 2 slots: Utility x2 10284 | -6/Factory | Loaded intel: 26 terminal locations 10784 | -6/Factory | Identified exit to Lower Caves 10788 | -6/Factory | Build established: Assassin 11049 | -6/Factory | Repaired Powered Armor 11439 | -6/Factory | Repaired Plasma Cannon+ 11492 | -6/Factory | Entered Lower Caves 11494 | -6/Lower Caves | Encountered a Master Thief 11495 | -6/Lower Caves | HERF Cannon stolen by Master Thief 11496 | -6/Lower Caves | Encountered a Master Thief 11500 | -6/Lower Caves | HERF Cannon stolen by Master Thief 11520 | -6/Lower Caves | Learned 4 Factory zone layouts 11817 | -6/Lower Caves | Build established: Skirmisher 11945 | -6/Lower Caves | Discovered new exit (range 8) 11953 | -6/Lower Caves | Identified exit to Lower Caves 11960 | -6/Lower Caves | Entered another Lower Caves area 12027 | -6/Lower Caves | Learned location of Extension (-4) 12400 | -6/Lower Caves | Attracted the attention of an 0b10 checkpoint 12680 | -6/Lower Caves | Build established: Mutant 15702 | -6/Lower Caves | Core integrity fell below 50% 15726 | -6/Lower Caves | Lost 3 parts (2u1w) 15772 | -6/Lower Caves | Core integrity fell below 20% 16106 | -6/Lower Caves | Destroyed by H-66 Slayer with Gauss Rifle Last Messages --------------- 15878_ M-22 Extractor destroyed. 15883_ Lgt. Ion Engine fries itself beyond repair. 15886_ Wheel fries itself beyond repair. 15890_ Imp. Trap Scanner fries itself beyond repair. 15900_ The unstable cave ceiling collapses. 15901_ System corrupted: Heat flow error (+217). 15916_ System corrupted: Substantial component data lost. 15934_ E E%OUJK6BU4LISQBIFK3V2 15963_ The unstable cave ceiling collapses. 15975_ 7BEKV3X8F8KG%UHLYQ0J 8,QNC 16029_ System corrupted: Heat flow error (+253). 16089_ System corrupted: Component data lost. 16101_ Penetrated by Slug. 16101_ Slug penetrates Earth. 16102_ Core Analyzer destroyed. 16102_ Chainsword destroyed. 16104_ System corrupted: Microactuators rejected. 16104_ Slug penetrates H-66 Slayer. 16106_ Penetrated by Slug. Map ----- +----------------------------------------------------+ | ????????????????????######## ####?????? ? | | ?????????????#####??# ##### ## #?????? #? | | ???????????### ##?# """ #???# # #?????? ## | | ???????????# ### """"" ##??# #?????? # | | ???????????# # ## """"" #### ##????# | | ???????????# ## " " ## ###?? | | ???????????# ### """ """## ##? | | ???????????# #### """ """### #? | | ???????##### ### """ """#?### #? | | ???????#"""##" ## #???#### #?# | | ???????#"" "" # ##???### #### | | ???????#" ## #???# #### | | ???????#" " " ### # ##???# ### | | ???????# ""##" ### # #????#### ## # | | ???????####?## ## ##??????# ## | | ?????????????## ## #??????# ### | | ??????????????######### ### #?????# ### | | ###???????????????????# #######????## | | #???????####?####???# ##?????# | | #??????## ## ##??# #?????# | | ##?????# #?##"### ##????## | | #?###?# ### ##?####?##### | | ##### ######## #"##???##### * | | ##?## #?????# # ##?### %[ # | | #??# ##?#### ## ### = ### | | ????# ### ## @ #### #?? | | ????# ## # ## ##??## #?? | | #???# ## ##????## #?# | | ##??# ! #;#?????## ### ### | | ##?## #; "##??????## #?# ## | | #??### # ## "#???????# ##?# | | #### # h ### ##??????# #??# | | ## ### h ####### #??????# ##### | | # ####?# ### ????# ##### # | | #####????#####?# ???# #??# | | ## ##????????????## ### #??##### | | ##### ########?????# ##### | | ## ##????# ###&& % | | ### #????#### &&%& # | | #?# #???????## &&& = # | | ### #####????????## ## % # # | | # ! = ##?????????????##?### # | | # #???????????????????## | | ## ## #????????????????????# # # | | ?###### ## #????????????????????#### ### | | ?????# #? ##???????????????????????## #?# | | ?????# #? ##???????????????????????? ?# | | ?????# ##?###???????????????????????? | | ?????### #???????????????????????????? | | ???????## #??????????????????????????? | +----------------------------------------------------+ Best States ------------- Heat Dissipation 53 Coolant Potential 50 Energy Generation 18 Energy Capacity 290 Matter Stores 300 Matter Capacity 300 Sight Range 20 Robot Scan Range 16 Terrain Scan Range 20 Terrain Scan Density 10 Jamming Range 12 Additional Mass Support 6 Armor Coverage 625 Resistance: KI 30 Resistance: EM 15 Utility Shielding 66 Melee Speed Boost 20 Evasion (%) 44 Targeting Accuracy 8 Core Analysis 9 Particle Charging 20 Offensive Hacking 20 Defensive Hacking 10 Authchip Count 2 Item Schematics ----------------- Arm. Wheel | -8/Materials | Hacked Arm. Huge Wheel | -7/Factory | Scanalyzed Core Analyzer | -7/Factory | Scanalyzed Imp. Utility Shielding | -7/Factory | Scanalyzed Powered Armor | -7/Factory | Scanalyzed Combat Drone Bay | -7/Data Miner | Free Lgt. Regenerative Plating | -7/Data Miner | Free Gravity Neutralizer | -7/Data Miner | Free Shock Maul | -7/Data Miner | Free Imp. Focal Shield | -7/Data Miner | Free Adv. Concussive RPG | -7/Data Miner | Free Adv. Coolant Injector | -7/Data Miner | Free Enh. Gauss Cannon | -7/Data Miner | Free Thunder Leg | -7/Data Miner | Free Cld. Cesium-ion Thruster | -7/Data Miner | Free HERF Cannon | -6/Factory | Scanalyzed Med. Reactive Plating | -6/Factory | Scanalyzed Robot Schematics ------------------ G-50 Soldier | -7/Data Miner | Free A-15 Conveyor | -7/Data Miner | Free S-27 Virus | -7/Data Miner | Free Fabricated ------------ HERF Cannon | x2 | -7/Factory | Preloaded Powered Armor | x2 | -7/Factory Repaired ---------- Med. Reactive Plating | 50% | -8/Storage Adv. Heat Sink | 70% | -8/Storage Powered Armor | 32% | -7/Factory Powered Armor | 13% | -6/Factory Plasma Cannon | 38% | -6/Factory Studied --------- Arm. Huge Wheel | -7/Factory | Hacked Plasma Cannon | -7/Factory | Hacked Hvy. Machine Gun | -6/Factory | Hacked Alien Tech Used ----------------- None Achievements -------------- Morally Flexible We Love MA Challenges ------------ None Game ------ Seed LightSurgeMatter Manual? 0 Play Time 02:36:41 Cumulative 486.2 hours Start 2026.01.01 @ 13:45:54 End 2026.01.01 @ 16:53:38 Sessions 1 Manual Loads 0 Difficulty Rogue Special Mode None Game No. 292 Rogue 292 Adventurer 0 Explorer 0 Win Type - Total 10 Types 6/0/2/0/0/0/0/2/0/0 Lore% 84 Gallery% 83 Achievement% 62 Wizard Run 0 Options --------- Layout 0 ASCII 0 Keyboard 0 Movement Mouse Keybinds 0 Fullscreen 1 Font 24/Smallcaps Map View 76x50 Zoom Use 0% Tactical HUD 1 Map Filters NONE Filters NONE Steam 1 RUN: 902cc313-d3e6-46cc-a544-abd860ca1cbc